Cogmind - Beta 15 @@@ ROGUE MODE // 2025.06.02 @ 16:04:55 Player: Gasoline_Joe Result: Destroyed by FL-8T4(g) with Salvaging Laser Performance ------------- Evolutions (0) 0 Regions Visited (3) 600 Robots Destroyed (4) 20 Value Destroyed (169) 169 Prototype IDs (6) 120 Alien Tech Used (0) 0 Bonus (800) 800 TOTAL SCORE: 1709 Bonus ------- Registered with UFD 300 Met Optimus in HQ 500 Cogmind --------- Core Integrity 0/250 Matter 300/300 Energy 140/140 System Corruption 0% Temperature Cool (29) Movement Walking (100) Location -9/Scraptown Parts ------- > --- POWER (1) -------- Light Deuterium Engine > --- PROPULSION (2) --- Overtuned Titanium Leg Overtuned Titanium Leg > --- UTILITY (2) ------ Small Storage Unit > --- WEAPON (2) ------- Gauss Rifle > --- INVENTORY (8) ---- Subdweller Power Source Light Treads Overtuned Titanium Leg Overtuned Titanium Leg Overtuned Huge Scrapsphere Subdweller Beam Cannon Subdweller Beam Cannon Peak State ------------ > --- POWER ------------ Light Deuterium Engine > --- PROPULSION ------- Overtuned Titanium Leg Overtuned Titanium Leg > --- UTILITY ---------- Small Storage Unit > --- WEAPON ----------- Overtuned Quantum Rifle Barrage Gun > --- INVENTORY -------- Subdweller Power Source Light Treads Overtuned Titanium Leg Overtuned Titanium Leg Overtuned Huge Scrapsphere Subdweller Beam Cannon Subdweller Beam Cannon [Rating: 23] Favorites ----------- Power Ion Engine Engine Ion Engine Propulsion Light Treads Treads Light Treads Leg Aluminum Leg Utility Small Storage Unit Device Subdweller Optics Storage Small Storage Unit Weapon Small Laser Energy Gun Small Laser Energy Cannon Subdweller Beam Cannon Ballistic Gun Battle Rifle Launcher Grenade Launcher Special Weapon Flamer Build | -11 -10 -10 -9 ------- Run | Yrd Mat Sub Scr Slots Evolved . | . . . . Power . | . . . . Propulsion . | . . . . Utility . | . . . . Weapon . | . . . . Parts Attached 25 | 7 . 9 9 Power 4 | 1 . 1 2 Engine 4 | 1 . 1 2 Core . | . . . . Reactor . | . . . . Propulsion 7 | 2 . 2 3 Treads 2 | . . 2 . Leg 5 | 2 . . 3 Wheel . | . . . . Hover . | . . . . Flight . | . . . . Utility 2 | 1 . 1 . Device 1 | . . 1 . Storage 1 | 1 . . . Processor . | . . . . Hackware . | . . . . Protection . | . . . . Artifact . | . . . . Weapon 12 | 3 . 5 4 Energy Gun 4 | 2 . 1 1 Energy Cannon 2 | . . 1 1 Ballistic Gun 4 | 1 . 1 2 Ballistic Cannon . | . . . . Launcher 1 | . . 1 . Special Weapon 1 | . . 1 . Impact Weapon . | . . . . Slashing Weapon . | . . . . Piercing Weapon . | . . . . Special Melee Weapon . | . . . . Unidentified Prototypes . | . . . . Parts Lost 6 | . . 5 1 Power 1 | . . 1 . Propulsion 2 | . . 2 . Utility . | . . . . Weapon 3 | . . 2 1 Highest Loss Streak 5 | . . 5 1 To Critical Strikes . | . . . . Average Backups 6 | 3 5 5 7 Power 1 | 1 1 . 1 Propulsion . | 1 2 . 1 Utility . | . . . . Weapon 4 | 1 2 4 4 Tool/Special . | . . . . Unused Backups 9 | . . 1 8 Power 1 | . . . 1 Propulsion 4 | . . . 4 Utility . | . . . . Weapon 4 | . . 1 3 Tool/Special . | . . . . Average Slot Usage (%) 69 | . 85 84 62 Engine 13 | . 14 13 14 Treads 23 | . . 19 26 Leg 3 | . 28 7 . Device 2 | . . 1 3 Storage 14 | . 14 14 14 Energy Gun 4 | . 14 13 . Ballistic Gun 4 | . 14 11 . Peak Build Rating 23 | 6 6 11 23 Average Rating 6 | 4 6 7 6 On Entrance 5 | . 6 6 11 Naked Turns . | . . . . Heaviest Build 26 | 13 13 22 26 Greatest Support 40 | 20 20 40 40 Greatest Overweight (x) 5 | . . 2 5 Average Overweight (x) . | . . . . Largest Inventory Capacity 8 | 8 8 8 8 Average Capacity 7 | 6 8 8 8 Most Carried 8 | 5 7 8 8 Average Carried 6 | 3 5 6 7 Final Capacity 8 | 8 8 8 8 Final Carried 8 | 4 7 8 8 Class Distribution -------------------- 98% | Mutant Dominant Class ---------------- Mutant | -10/Materials Mutant | -10/Subcaves Mutant | -9/Scraptown Resources | -11 -10 -10 -9 ----------- Run | Yrd Mat Sub Scr Matter Collected 523 | 270 . 108 145 Remotely . | . . . . Salvage Created 131 | . . 61 70 Parts 9 | . . 7 2 Haulers Intercepted . | . . . . Recyclers Shooed . | . . . . Parts Field Recycled . | . . . . Retrieved Matter . | . . . . Parts Self-Destructed 6 | . . 6 . Prevented . | . . . . Kills | -11 -10 -10 -9 ------- Run | Yrd Mat Sub Scr Combat Hostiles Destroyed 4 | . . 3 1 Guns 2 | . . 1 1 Cannons 1 | . . 1 . AOE 1 | . . 1 . Classes Destroyed 2 | . . 1 1 Subdweller 3 | . . 3 . Scrapper 1 | . . . 1 Best Kill Streak 2 | . . 2 1 Combat Bots Only 2 | . . 2 1 Max Kills in Single Turn 1 | . . 1 1 Gunslinging . | . . . . Exploded 1 | . . 1 . Melee . | . . . . Uniques/NPCs Destroyed . | . . . . Combat | -11 -10 -10 -9 -------- Run | Yrd Mat Sub Scr Hostile Shots Fired 65 | . . 34 31 Missed 14 | . . 9 5 Hits 51 | . . 25 26 Projectile 51 | . . 25 26 Critical Strikes 4 | . . 1 3 Damage Taken 1072 | . . 646 426 Core 255 | . . 170 85 Absorbed by Shields . | . . . . Core Remaining (%) 100 | 100 . . . Volleys Fired 22 | . . 12 10 Largest 2 | . . 2 2 Hottest 148 | . . 140 148 Shots Fired 37 | . . 21 16 Gun 26 | . . 10 16 Cannon 1 | . . 1 . Launcher 3 | . . 3 . Special 7 | . . 7 . Kinetic 11 | . . 1 10 Thermal 16 | . . 10 6 Explosive 3 | . . 3 . Electromagnetic 7 | . . 7 . Robot Hit Streak 20 | . . 20 3 Robot Miss Streak 3 | . . . 3 Penetration Max . | . . . . Secondary Targets . | . . . . Shots Hit Robots 28 | . . 20 8 Core Hits 8 | . . 6 2 Critical Kills . | . . . . Critical Parts Destroyed . | . . . . Critical Strikes . | . . . . Melee Attacks . | . . . . Impact . | . . . . Slashing . | . . . . Piercing . | . . . . Sneak Attacks . | . . . . Combat Hostiles . | . . . . Follow-up Attacks . | . . . . Damage Inflicted 572 | . . 416 156 Guns 257 | . . 101 156 Cannons 27 | . . 27 . Explosions 213 | . . 213 . Melee . | . . . . Ramming . | . . . . Kinetic 121 | . . . 121 Thermal 161 | . . 126 35 Explosive 213 | . . 213 . Electromagnetic 77 | . . 77 . Impact . | . . . . Slashing . | . . . . Piercing . | . . . . Highest Corruption . | . . . . Average Corruption . | . . . . Corruption Purged . | . . . . Corruption Blocked . | . . . . Overload Shots . | . . . . Overflow Damage 9 | . . 9 . Projectiles . | . . . . Explosions 9 | . . 9 . Melee . | . . . . Knockbacks . | . . . . Impact . | . . . . Kinetic . | . . . . Secondary . | . . . . Self-Inflicted Damage 111 | . . 111 . Shots 3 | . . 3 . Rammed . | . . . . Targets Rammed . | . . . . Kicked . | . . . . Crushed . | . . . . Highest Temperature 352 | . . 24 352 Average Temperature 134 | . . 18 137 Received Heat Transfer 348 | . . 27 321 Siege Activations . | . . . . Martial Activations . | . . . . Shielding Activations . | . . . . Robots Disrupted . | . . . . Combat Hostiles . | . . . . Robots Corrupted . | . . . . Combat Hostiles . | . . . . Parts Fried . | . . . . Impact Corruptions . | . . . . Robots Melted . | . . . . Combat Hostiles . | . . . . Parts Melted 1 | . . . 1 Heat Transferred 684 | . . 647 37 Parts Sabotaged . | . . . . Parts Stolen . | . . . . Parts Stripped . | . . . . Power Chain Reactions . | . . . . Alert | -11 -10 -10 -9 ------- Run | Yrd Mat Sub Scr Maximum Alert Level . | . . . . Low Security (%) 100 | 100 100 . . Level 1 . | . . . . Level 2 . | . . . . Level 3 . | . . . . Level 4 . | . . . . Level 5 . | . . . . High Security . | . . . . Max Security . | . . . . Peak Influence . | . . . . Initial . | . . . . Average . | . . . . Influence Increases . | . . . . Influence Decreases . | . . . . Squads Dispatched . | . . . . Investigation . | . . . . Extermination . | . . . . Reinforcement . | . . . . Assault . | . . . . Garrison . | . . . . Intercept . | . . . . Searches Triggered . | . . . . Construction Impeded . | . . . . Haulers Reinforced . | . . . . Active Scanning Responses . | . . . . Cargo Convoy Interrupts . | . . . . Stealth | -11 -10 -10 -9 --------- Run | Yrd Mat Sub Scr Distress Signals . | . . . . Communications Jammed . | . . . . Distress Signals . | . . . . Times Spotted 23 | . 2 4 17 Peak Tracking Total 7 | . 2 2 7 Tactical Retreats . | . . . . Traps | -11 -10 -10 -9 ------- Run | Yrd Mat Sub Scr Traps Triggered . | . . . . Indirectly . | . . . . Trap Hack Attempts . | . . . . Triggered . | . . . . Disarmed . | . . . . Reprogrammed . | . . . . Reused . | . . . . Traps Extracted . | . . . . Installed . | . . . . Triggered . | . . . . Machines | -11 -10 -10 -9 ---------- Run | Yrd Mat Sub Scr Machines Disabled . | . . . . Max in Single Turn . | . . . . Machines Repaired . | . . . . Machines Dismantled . | . . . . Machines Sabotaged . | . . . . Overloaded Fab Kills . | . . . . Hacking | -11 -10 -10 -9 --------- Run | Yrd Mat Sub Scr Machines Accessed 11 | . 1 . 10 Terminals 1 | . 1 . . Fabricators . | . . . . Repair Stations . | . . . . Recycling Units . | . . . . Scanalyzers . | . . . . Garrison Access . | . . . . Total Hacks 77 | . 2 . 75 Successful 76 | . 1 . 75 Failed 1 | . 1 . . Catastrophic . | . . . . Database Lockouts . | . . . . Manual . | . . . . Terminals 2 | . 2 . . Fabricators . | . . . . Repair Stations . | . . . . Recycling Units . | . . . . Scanalyzers . | . . . . Garrison Access . | . . . . Terminal Hacks 76 | . 1 . 75 Record 69 | . . . 69 Robot Analysis 6 | . . . 6 Transport Status 1 | . 1 . . Fabricator Hacks . | . . . . Repair Station Hacks . | . . . . Recycling Unit Hacks . | . . . . Scanalyzer . | . . . . Garrison Access Hacks . | . . . . Unauthorized Hacks . | . . . . Terminals . | . . . . Fabricators . | . . . . Repair Stations . | . . . . Recycling Units . | . . . . Scanalyzers . | . . . . Garrison Access . | . . . . Data Cores Recovered . | . . . . Used . | . . . . Hacking Detections 1 | . 1 . . Full Trace Events . | . . . . Feedback Events . | . . . . Feedback Blocked . | . . . . Robot Schematics Acquired . | . . . . Robots Built . | . . . . Authchips . | . . . . Time . | . . . . Total Robot Build Rating . | . . . . Part Schematics Acquired . | . . . . Parts Built . | . . . . Authchips . | . . . . Time . | . . . . Total Part Build Rating . | . . . . Parts Repaired . | . . . . Time . | . . . . Parts Recycled . | . . . . Recycled Matter . | . . . . Retrieved Matter . | . . . . Retrieved Components . | . . . . Parts Scanalyzed . | . . . . Part Schematics Acquired . | . . . . Parts Damaged . | . . . . Bothacking | -11 -10 -10 -9 ------------ Run | Yrd Mat Sub Scr Used RIF Installer . | . . . . Robots Hacked . | . . . . Non-combat . | . . . . Combat . | . . . . Robot Hacks Applied . | . . . . Relay Couplers Released . | . . . . Fabnet Peak Effective % . | . . . . Robots Rewired . | . . . . Allies Hacked . | . . . . Hacks Repelled . | . . . . Allies | -11 -10 -10 -9 -------- Run | Yrd Mat Sub Scr Total Allies . | . . . . Largest Group . | . . . . Highest-Rated Group . | . . . . Highest-Rated Ally . | . . . . Total Orders . | . . . . Ally Attacks . | . . . . Total Damage . | . . . . Kills . | . . . . Allies Corrupted . | . . . . Allies Melted 5 | . . . 5 Intel | -11 -10 -10 -9 ------- Run | Yrd Mat Sub Scr Active Infowar (turns) 895 | . . 162 733 Optics 895 | . . 162 733 Robot Analysis Total 6 | . . . 6 Derelict Logs Recovered 5 | . . 2 3 Drone Launches . | . . . . Drone Recoveries . | . . . . Exploration | -11 -10 -10 -9 ------------- Run | Yrd Mat Sub Scr Turns Passed 4517 | 59 149 1332 2977 Spaces Moved 2839 | 40 116 848 1835 Core 35 | 7 . 26 2 Treads 2336 | . . 566 1770 Legs 468 | 33 116 256 63 Wheels . | . . . . Hover . | . . . . Flight . | . . . . Fastest Speed 50 | 50 120 120 100 Average Speed 152 | 107 120 147 158 Slowest Speed 300 | 120 120 160 300 Overloaded Moves . | . . . . Propulsion Burnouts . | . . . . Robots Hopped . | . . . . Potential Cave-ins . | . . . . Cave-ins Triggered . | . . . . Exploration Rate (%) 44 | 4 23 56 95 Regions Visited 3 Branch Regions 2 Pre-discovered Areas 3 | . . 1 2 Known Exits Taken . | . . . . Unknown Exits Taken 3 | 1 1 1 . Scrap Searched 6 | . . 4 2 Spaces Dug . | . . . . Terrain Destroyed 25 | . . 23 2 Melee . | . . . . Projectile 2 | . . . 2 AOE 23 | . . 23 . Terrain Rammed . | . . . . Walls Destroyed . | . . . . Machines Disabled . | . . . . Actions | -11 -10 -10 -9 --------- Run | Yrd Mat Sub Scr Total 2983 | 55 126 899 1903 Wait 44 | . 6 13 25 Move 2836 | 39 115 847 1835 Hop . | . . . . Pick Up 32 | 8 4 12 8 Fast Attach 5 | 2 . . 3 Attach 16 | 5 . 6 5 Detach 3 | 1 . . 2 Swap 7 | . . 4 3 Drop 18 | . 1 5 12 Fire 22 | . . 12 10 Melee . | . . . . Ram . | . . . . Kick . | . . . . Crush . | . . . . Escape Stasis . | . . . . Rewire . | . . . . Trap . | . . . . Miscellaneous . | . . . . Route ------- -11/Scrapyard -10/Materials -10/Subcaves (discovered 3 exits: [*Mat x2] / *Scr) -9/Scraptown (discovered 2 exits: [*Fac x2]) History --------- Turn | Location | Event 8 | -11/Scrapyard | Discovered new exit (range 16) 60 | -11/Scrapyard | Entered Materials 61 | -10/Materials | Met a group of wandering Federalists 203 | -10/Materials | Discovered new exit (range 6) 209 | -10/Materials | Entered Subcaves 210 | -10/Subcaves | Continued accompanying wandering Federalists (5) 310 | -10/Subcaves | Build established: Mutant 401 | -10/Subcaves | Discovered new exit (range 9) 409 | -10/Subcaves | Ambushed by Subdwellers from Twisted Machinery 502 | -10/Subcaves | Shifting Twisted Machinery released Ripper 557 | -10/Subcaves | Core integrity fell below 50% 561 | -10/Subcaves | Discovered new exit (range 5) 601 | -10/Subcaves | Lost 5 parts (1p2n2w) 762 | -10/Subcaves | Shifting Twisted Machinery released Battle Rifle 1117 | -10/Subcaves | Learned location of Mines (-10) 1541 | -10/Subcaves | Entered Scraptown 1755 | -9/Scraptown | Visited Junk Repository 1789 | -9/Scraptown | Visited Cyclists 1867 | -9/Scraptown | Visited UFD Registry 1867 | -9/Scraptown | Registered with UFD as "Novastep" 1915 | -9/Scraptown | Entered Cyclist Reading Room 1960 | -9/Scraptown | Visited Fellowship of the Rings 2314 | -9/Scraptown | Visited Spacefarers 2396 | -9/Scraptown | Visited Awakened 2461 | -9/Scraptown | Visited Comm Corps 2596 | -9/Scraptown | Heard Great Nut preacher, LISTEN AND RECITE! 2834 | -9/Scraptown | Discovered new exit (range 5) 2876 | -9/Scraptown | Scanned Subdweller tech in exchange for log data 2883 | -9/Scraptown | Learned location of Zion (-7) 2885 | -9/Scraptown | Learned location of Extension (-4) 2886 | -9/Scraptown | Learned location of 1 exit from Factory 2936 | -9/Scraptown | Guru changed UFD alias to "Monogunner" 3029 | -9/Scraptown | Visited Science Testing Area 3122 | -9/Scraptown | Visited Modified Component R&D 3187 | -9/Scraptown | Visited Research Penetration Think Tank 3226 | -9/Scraptown | Visited Observation Area 3290 | -9/Scraptown | Visited Junk Cannon Lab 3437 | -9/Scraptown | Discovered new exit (range 5) 3517 | -9/Scraptown | Visited Analyses Database 3573 | -9/Scraptown | Visited Infowarlord's Domain 3606 | -9/Scraptown | Visited LU-1G1's Boring Crew 3925 | -9/Scraptown | Visited Supply Room 3954 | -9/Scraptown | Visited Abandonware Association 3981 | -9/Scraptown | Learned abandonware demo "REVENGE.EXE" 4019 | -9/Scraptown | Visited Scrapoid Pod Storage 4184 | -9/Scraptown | Met Optimus 4184 | -9/Scraptown | Accepted into 0bPrime 4350 | -9/Scraptown | Civil war broke out across Scraptown 4432 | -9/Scraptown | Core integrity fell below 20% 4488 | -9/Scraptown | Lost 3 allies 4518 | -9/Scraptown | Destroyed by FL-8T4(g) with Salvaging Laser Last Messages --------------- 04505_ 4J-0F4(x) heat spikes uncontrollably. 04505_ 4J-0F4(x) overheating. 04505_ 4J-0F4(x) suffers critical hit (Burn). 04505_ 4J-0F4(x) destroyed. 04506_ Critical hit (Burn: +50). 04507_ QH-6BW(j) destroyed. 04509_ Ovr. Titanium Leg recovered from malfunction. 04510_ 4I-8VZ(j) destroyed. 04511_ Acquired 10 matter. 04512_ 38-DJR(j) destroyed. 04513_ YJ-QQB(g) destroyed. 04513_ Dropped Ovr. Titanium Leg. 04514_ Acquired Ovr. Titanium Leg. 04514_ Bolt penetrates J6-LXB(j). 04514_ J6-LXB(j) destroyed. 04516_ Penetrated by Bolt. 04516_ Barrage Gun destroyed. 04516_ Critical hit (Burn: +50). 04516_ Acquired 5 matter. Map ----- +----------------------------------------------------+ | ########???????##""" #""######## ########### ##### | | #???????#" [ !"" =""! """""""""" """"" | | #???????#" =%!%[ !%! * [ | | #???????#" !![%= [ %=[ ! | | #???????#" !! !! | | #???????#" [= = % | | #????####" !!* | | #????"""" "%% " """"""" """""""""""""" | | #????"""" "[[" """"""""""""""""""""""" | | #????"""" ["!##### ################"" | | #????"""" "=! ##????????#"" | | #????"""" =!""# !!= X"#????????#"" | | ###?#"""" ==%""# "=%["" ##????????#"" | | ""#"#"""" %*!""# ""%* "" X"#??????###"" | | """"#"""" =*!""# " = " ######### #"" | | ""####### " "" | | ###?????#" " " | | #########! "# " " ######### #"" | | [ !% # "" "" ""#??????###"" | | = ! "# "" "" ##????????#"" | | !%* j # X"#????????#"" | | [ ! [= ""# g ##????????#"" | | ! !%! ! "###### ################"" | | %[ ! !=%""""""* """""""""""""""" | | ! %= =% """[""% """""""""""""""" | | =% !![=%@=[%!=% j %= | | ! !%=!=!=[!! g %=% | | ! !!%= | | #""""# [* | | #????#" !%!%! !%h%/% | | #????#""" =" = " " " ! """"""" """ | | ### ####????#####;# ##;;;###### ########### ### | | ## #???????????" "##?# % ## | | ## #??????????#" "#??# ## | | ## #??????????#" "#??# """"" ##"" " | | ## #??????????#" ! "#??# "###" ##"" [" | | ## #??????????# "" ""#??# "#X#" ##!! ""[ " | | ## #??????????##;##"####??# "# #" ##!!"""["" | | ## #???????????" ?? ??????# #####??### | | ## #??????????????? ??????# " " " #????????? | | ## #??????????????????????#"""""""""#????????? | | #### #??????????????????????###########????????? | | ???# #?????????????????????????????????????????? | | #### #?????????????????????????????????????????? | | """" #????###################################### | | """" #????# ##"""##"""##"""##"""##"""##" | | "" #????# """"""" ## ""##|""##" "##"""##"" ##" | | #????# """"""" | | "" " #????# """"""" | | """" #????# """"""" | +----------------------------------------------------+ Best States ------------- Heat Dissipation 25 Energy Generation 15 Energy Capacity 250 Matter Stores 300 Matter Capacity 300 Sight Range 21 Terrain Scan Density 10 Evasion (%) 55 Recoil Reduction 2 Item Schematics ----------------- None Robot Schematics ------------------ None Fabricated ------------ Nothing Repaired ---------- Nothing Alien Tech Used ----------------- None Achievements -------------- None Challenges ------------ None Game ------ Seed RemoteScatterBoregun Manual? 0 Play Time 00:49:10 Cumulative 12.4 hours Start 2025.06.02 @ 15:07:48 End 2025.06.02 @ 16:04:55 Sessions 1 Manual Loads 0 Difficulty Rogue Special Mode None Game No. 13 Rogue 13 Adventurer 0 Explorer 0 Win Type - Total 0 Types 0/0/0/0/0/0/0/0/0/0 Lore% 15 Gallery% 13 Achievement% 17 Wizard Run 0 Options --------- Layout 2 ASCII 0 Keyboard 0 Movement Mouse Keybinds 0 Fullscreen 2 Font 24/Smallcaps Map View 50x44 Zoom Use 0% Tactical HUD 1 Map Filters NONE Filters NONE Steam 1 RUN: e62940fc-f5fb-4f72-bd50-f24bd3d3e915